bitfinex/quotes_SOLUSD_20220128
["timestamp","ask_amount","ask_price","bid_price","bid_amount"]
[1643411081135,16.552,90.72,90.638,6.0]
[1643411081338,16.552,90.72,90.641,6.0]
[1643411081535,16.552,90.72,90.641,13.61]
[1643411081736,16.552,90.72,90.642,0.25]
[1643411081936,55.164,90.75,90.642,3.20669142]
[1643411082136,1.48666302,90.758,90.65,15.61]
[1643411082441,45.5359,90.779,90.661,1.82323187]
[1643411082442,52.68461042,90.757,90.661,1.82323187]
[1643411082741,45.5359,90.779,90.661,8.55182563]
[1643411082937,45.5359,90.779,90.671,109.9]
[1643411083137,45.5359,90.779,90.68,15.61]
[1643411083338,45.5359,90.779,90.681,0.25]
[1643411083637,45.5359,90.779,90.681,113.10669142]
[1643411083840,24.9984,90.805,90.69,6.0]
[1643411084038,52.68461042,90.804,90.692,109.9]
[1643411084237,52.68461042,90.804,90.693,0.25]
[1643411084437,52.68461042,90.804,90.693,3.20669142]
[1643411084637,76.66471042,90.804,90.693,3.20669142]
[1643411084837,51.86873411,90.803,90.693,3.20669142]
[1643411085039,16.539,90.79,90.693,3.20669142]
[1643411085241,51.86873411,90.802,90.7,15.61]
[1643411085443,51.86873411,90.801,90.7,24.13]
[1643411085639,51.86873411,90.8,90.701,3.20669142]
[1643411085841,51.86873411,90.799,90.701,3.20669142]
[1643411086039,51.86873411,90.798,90.703,109.9]
[1643411086238,51.86873411,90.8,90.704,0.25]
[1643411086440,50.92424014,90.8,90.704,3.20669142]
[1643411086639,50.92424014,90.8,90.705,2.95669142]
[1643411086839,50.92424014,90.8,90.706,0.25]
[1643411087240,50.92424014,90.8,90.707,2.95669142]
[1643411087742,50.92424014,90.8,90.708,0.25]
[1643411088140,50.92424014,90.8,90.709,2.95669142]
[1643411088341,0.25,90.801,90.71,15.86]
[1643411088543,0.25,90.801,90.711,134.7476]
[1643411088743,0.25,90.801,90.711,137.70429142]
[1643411088943,0.25,90.801,90.712,3.20669142]
[1643411089344,0.25,90.801,90.713,2.95669142]
[1643411089543,23.9801,90.804,90.713,2.95669142]
[1643411089746,16.537,90.8,90.714,23.8628]
[1643411090147,16.537,90.8,90.715,112.85669142]
[1643411091648,16.537,90.8,90.716,0.25]
[1643411093552,16.537,90.8,90.714,23.6128]
[1643411093785,0.25,90.799,90.714,23.6128]
[1643411093979,16.54,90.78,90.714,23.6128]
[1643411094177,16.54,90.78,90.711,24.8476]
[1643411095880,16.54,90.78,90.697,24.8658]
[1643411096280,16.54,90.78,90.68,15.61]
[1643411096481,22.8633,90.779,90.673,23.0041]
[1643411096780,16.545,90.76,90.673,23.0041]
[1643411097580,16.545,90.76,90.674,109.9]
[1643411099782,16.545,90.76,90.673,23.0041]
[1643411101193,16.55,90.73,90.65,15.61]
[1643411101386,16.55,90.73,90.642,23.4396]
[1643411101685,16.55,90.73,90.642,23.6896]
[1643411102484,16.55,90.73,90.643,109.9]
[1643411103484,41.21877949,90.729,90.645,109.9]
[1643411103688,16.552,90.72,90.645,109.9]
[1643411104085,41.21877949,90.729,90.645,109.9]
[1643411104285,41.21877949,90.729,90.646,0.25]
[1643411104684,41.21877949,90.729,90.645,107.65]
[1643411106288,41.21877949,90.729,90.646,0.25]
[1643411107087,41.21877949,90.729,90.65,15.61]
[1643411107290,41.21877949,90.729,90.651,107.9]
[1643411108688,41.21877949,90.729,90.652,2.95669142]
[1643411108889,0.25,90.728,90.663,21.1336329]
[1643411109089,0.25,90.728,90.673,6.0]
[1643411109488,0.25,90.728,90.663,21.1336329]
[1643411109689,0.25,90.728,90.664,0.25]
[1643411110290,0.25,90.728,90.664,110.15]
[1643411110490,0.25,90.728,90.664,133.6506]
[1643411110693,0.25,90.739,90.664,133.6506]
[1643411111291,40.35438106,90.739,90.664,133.6506]
[1643411112891,40.35438106,90.739,90.664,136.60729142]
[1643411113393,91.928548,90.739,90.664,136.60729142]
[1643411113594,51.57416694,90.738,90.664,136.10729142]
[1643411113792,0.25,90.737,90.665,0.25]
[1643411113994,51.82416694,90.737,90.665,0.25]
[1643411114195,51.82416694,90.737,90.665,3.20669142]
[1643411115596,0.25,90.737,90.665,0.25]
[1643411115797,0.25,90.748,90.665,0.25]
[1643411116004,40.06720205,90.748,90.665,3.20669142]
[1643411116696,16.547,90.74,90.665,3.20669142]
[1643411116897,0.25,90.739,90.678,109.65]
[1643411117100,0.25,90.739,90.688,6.0]
[1643411117498,0.25,90.739,90.69,6.0]
[1643411117697,0.25,90.739,90.691,21.1336329]
[1643411118098,0.25,90.747,90.692,109.65]
[1643411118499,0.25,90.747,90.692,132.323]
[1643411118702,0.25,90.767,90.692,132.323]
[1643411119301,40.23397719,90.767,90.692,132.323]
[1643411120530,0.25,90.767,90.693,2.95669142]
[1643411121029,0.25,90.779,90.693,2.95669142]
[1643411121429,38.71680136,90.779,90.693,2.95669142]
[1643411122528,1.48666302,90.792,90.7,15.61]
[1643411122830,23.5899,90.799,90.702,109.65]
[1643411123230,23.5899,90.799,90.703,27.79779142]
[1643411123429,36.31017921,90.798,90.704,109.65]
[1643411123631,36.31017921,90.798,90.706,109.65]
[1643411123831,36.31017921,90.798,90.711,109.65]
[1643411124234,0.25,90.797,90.712,0.25]
[1643411124434,0.25,90.797,90.712,3.20669142]
[1643411124634,1.48666302,90.808,90.713,2.95669142]
[1643411124834,16.533,90.82,90.723,109.65]
[1643411124835,1.48666302,90.82,90.723,109.65]
[1643411125042,51.36497437,90.819,90.731,109.65]
[1643411125237,51.36497437,90.818,90.733,109.65]
[1643411125436,1.48666302,90.837,90.74,16.528]
[1643411125636,34.26654224,90.836,90.741,44.2472329]
[1643411125846,34.26654224,90.836,90.742,109.65]
[1643411126139,51.36497437,90.835,90.742,122.44]
[1643411126338,51.36497437,90.834,90.743,3.20669142]
[1643411126538,53.28714946,90.833,90.743,3.20669142]
[1643411126737,53.28714946,90.832,90.744,2.95669142]
[1643411127036,0.25,90.832,90.744,2.95669142]
[1643411127240,53.28714946,90.833,90.745,0.25]
[1643411127436,0.25,90.833,90.745,0.25]
[1643411127636,53.28714946,90.833,90.746,2.95669142]
[1643411127837,53.28714946,90.832,90.76,15.61]
[1643411128037,53.28714946,90.831,90.761,144.6163671]
[1643411128241,34.26654224,90.836,90.761,147.82305852]
[1643411128437,52.56481234,90.835,90.762,2.95669142]
[1643411128836,52.56481234,90.835,90.763,0.25]
[1643411129640,0.25,90.834,90.763,0.25]
[1643411129845,52.56481234,90.833,90.763,0.25]
[1643411130044,52.56481234,90.832,90.764,2.95669142]
[1643411130241,52.56481234,90.831,90.765,0.25]
[1643411130444,53.9866236,90.83,90.765,59.0811]
[1643411130644,0.25,90.834,90.77,15.61]
[1643411130845,53.9866236,90.867,90.771,0.25]
[1643411131042,53.9866236,90.867,90.771,112.85669142]
[1643411131043,0.25,90.867,90.771,112.85669142]
[1643411131245,43.76564202,90.865,90.772,2.95669142]
[1643411131443,53.9866236,90.864,90.772,2.95669142]
[1643411131645,53.9866236,90.863,90.773,0.25]
[1643411131844,54.2366236,90.862,90.773,0.25]
[1643411132048,53.9866236,90.861,90.773,0.25]
[1643411132244,53.9866236,90.86,90.773,0.25]
[1643411132446,51.62631372,90.859,90.773,0.25]
[1643411132647,51.62631372,90.858,90.775,21.1336329]
[1643411132844,51.62631372,90.857,90.78,15.61]
[1643411133045,16.524,90.86,90.78,15.61]
[1643411133046,51.62631372,90.856,90.781,109.65]
[1643411133244,51.62631372,90.855,90.782,24.5634]
[1643411133444,51.62631372,90.854,90.783,109.65]
[1643411133646,51.62631372,90.853,90.783,109.9]
[1643411133849,51.62631372,90.852,90.784,2.95669142]
[1643411134044,51.62631372,90.851,90.784,12.99669142]
[1643411134245,51.87631372,90.85,90.785,109.9]
[1643411134446,51.87631372,90.85,90.785,112.85669142]
[1643411134644,51.87631372,90.85,90.786,2.95669142]
[1643411134845,51.87631372,90.85,90.803,109.65]
[1643411135045,51.87631372,90.85,90.803,121.25]
[1643411135246,51.87631372,90.85,90.804,0.25]
[1643411135445,51.87631372,90.85,90.804,3.20669142]
[1643411135850,51.87631372,90.85,90.805,2.95669142]
[1643411136247,51.87631372,90.85,90.806,0.25]
[1643411136655,51.87631372,90.85,90.807,2.95669142]
[1643411136849,51.87631372,90.85,90.808,0.25]
[1643411137249,12.33435798,90.849,90.807,2.95669142]
[1643411137451,65.16138153,90.849,90.802,34.9663671]
[1643411137650,53.07702355,90.848,90.802,34.9663671]
[1643411138455,52.82702355,90.848,90.803,109.9]
[1643411138679,50.79027303,90.847,90.803,8.37]
[1643411138848,50.79027303,90.846,90.803,8.37]
[1643411139051,50.79027303,90.845,90.803,8.37]
[1643411139249,50.79027303,90.846,90.804,0.25]
[1643411139450,39.3971442,90.846,90.804,0.25]
[1643411140050,39.3971442,90.846,90.803,109.9]
[1643411140452,39.3971442,90.846,90.79,15.61]
[1643411140653,0.25,90.845,90.78,15.61]
[1643411140852,54.3247543,90.845,90.781,109.9]
[1643411141052,54.0747543,90.845,90.782,0.25]
[1643411141453,54.0747543,90.845,90.782,42.40085526]
[1643411141658,0.25,90.844,90.783,109.9]
[1643411141853,54.3247543,90.844,90.784,0.25]
[1643411142452,54.0747543,90.844,90.784,0.25]
[1643411142655,52.8745,90.843,90.784,0.25]
[1643411142855,52.8745,90.842,90.784,0.25]
[1643411143053,52.8745,90.841,90.784,0.25]
[1643411143255,52.8745,90.84,90.784,0.25]
[1643411143454,52.8745,90.839,90.784,0.25]
[1643411143654,52.8745,90.845,90.784,0.25]
[1643411144455,52.8745,90.845,90.785,109.9]
[1643411144856,52.8745,90.845,90.786,0.25]
[1643411145656,52.8745,90.845,90.726,17.14571834]
[1643411145657,0.25,90.844,90.75,211.94028382]
[1643411145857,0.25,90.844,90.74,15.61]
[1643411145858,50.7807395,90.844,90.74,15.61]
[1643411146056,50.7807395,90.844,90.767,109.9]
[1643411146483,50.7807395,90.844,90.74,15.61]
[1643411146685,24.5905,90.843,90.741,43.82790521]
[1643411146886,51.93559936,90.842,90.741,43.82790521]
[1643411147082,51.68559936,90.841,90.742,109.9]
[1643411147283,51.93559936,90.84,90.743,23.7598]
[1643411147484,51.68559936,90.839,90.744,109.9]
[1643411147685,51.68559936,90.838,90.744,110.15]
[1643411147885,51.68559936,90.837,90.744,110.15]
[1643411148085,51.68559936,90.836,90.744,109.9]
[1643411148485,51.05789252,90.835,90.744,109.9]
[1643411148686,51.05789252,90.834,90.745,2.95669142]
[1643411148886,39.3971442,90.846,90.751,109.9]
[1643411148887,51.05789252,90.833,90.751,109.9]
[1643411149086,67.76074832,90.832,90.751,109.9]
[1643411149290,16.7028558,90.832,90.752,0.25]
[1643411149887,0.25,90.831,90.752,0.25]
[1643411150789,16.7028558,90.832,90.752,0.25]
[1643411152190,0.25,90.831,90.752,0.25]
[1643411153187,16.7028558,90.832,90.752,0.25]
[1643411153389,16.529,90.83,90.752,0.25]
[1643411154594,0.25,90.829,90.752,0.25]
[1643411156893,0.25,90.829,90.744,110.15]
[1643411158496,16.529,90.83,90.744,110.15]
[1643411159697,24.6819,90.829,90.744,110.15]
[1643411160297,76.99971637,90.829,90.744,110.15]
[1643411160497,24.6819,90.829,90.744,110.15]
[1643411160996,76.99971637,90.829,90.744,110.15]
[1643411161196,52.31781637,90.828,90.744,110.15]
[1643411161397,0.25,90.827,90.744,110.15]
[1643411161599,52.56781637,90.827,90.744,110.15]
[1643411161896,16.531,90.82,90.744,110.15]
[1643411162399,0.25,90.819,90.744,110.15]
[1643411162997,37.74015739,90.809,90.744,110.15]
[1643411163198,37.74015739,90.809,90.744,0.25]
[1643411163398,0.25,90.808,90.724,25.21990624]
[1643411163599,23.3009,90.808,90.724,23.6985]
[1643411164098,23.3009,90.808,90.715,1.52140624]
[1643411164299,23.3009,90.808,90.716,0.25]
[1643411164498,73.71766463,90.808,90.716,0.25]
[1643411164699,50.41676463,90.807,90.716,0.25]
[1643411164930,0.25,90.806,90.716,0.25]
[1643411165100,16.535,90.8,90.716,0.25]
[1643411165302,0.25,90.799,90.716,0.25]
[1643411166503,0.25,90.806,90.716,0.25]
[1643411166702,54.15432157,90.806,90.716,0.25]
[1643411167104,16.537,90.79,90.716,0.25]
[1643411167303,18.60984261,90.789,90.716,0.25]
[1643411167507,18.60984261,90.789,90.715,0.25]
[1643411168404,71.68005908,90.789,90.715,0.25]
[1643411168607,16.538,90.78,90.715,0.25]
[1643411168812,0.25,90.779,90.715,0.25]
[1643411169004,0.25,90.779,90.714,44.70131846]
[1643411169207,0.25,90.779,90.701,109.9]
[1643411169606,16.54,90.77,90.69,15.61]
[1643411169807,0.25,90.769,90.691,133.2313]
[1643411170208,37.99015739,90.769,90.692,37.17150057]
[1643411170408,37.99015739,90.769,90.692,37.42150057]
[1643411170607,37.99015739,90.769,90.692,37.17150057]
[1643411171010,16.542,90.76,90.692,37.17150057]
[1643411171409,0.25,90.759,90.692,37.17150057]
[1643411172539,0.25,90.768,90.692,37.17150057]
[1643411172737,54.06487425,90.768,90.692,37.17150057]
[1643411173138,18.35984261,90.749,90.692,37.17150057]
[1643411173439,0.25,90.748,90.692,37.17150057]
[1643411174141,16.546,90.74,90.692,37.17150057]
[1643411174340,0.25,90.739,90.67,15.61]
[1643411174945,0.25,90.739,90.66,109.9]
[1643411175442,0.25,90.747,90.661,38.68343998]
[1643411176042,37.74015739,90.729,90.661,38.68343998]
[1643411176243,0.25,90.728,90.661,38.68343998]
[1643411179245,37.74015739,90.729,90.661,38.68343998]
[1643411179848,37.74015739,90.729,90.662,0.25]
[1643411180248,37.74015739,90.729,90.663,2.95669142]
[1643411180648,0.25,90.728,90.664,0.25]
[1643411184654,37.74015739,90.729,90.664,0.25]
[1643411185455,23.2468,90.748,90.664,0.25]
[1643411185656,15.61,90.79,90.664,40.30919142]
[1643411185853,76.47616109,90.765,90.672,6.0]
[1643411186055,51.54846109,90.764,90.68,15.61]
[1643411186254,0.25,90.763,90.681,24.9425]
[1643411186553,53.57142728,90.763,90.691,6.0]
[1643411186755,36.41043447,90.78,90.701,34.36234186]
[1643411186956,36.41043447,90.78,90.702,109.9]
[1643411187156,36.41043447,90.78,90.702,113.10669142]
[1643411187355,16.537,90.79,90.702,113.10669142]
[1643411187554,16.537,90.79,90.704,109.9]
[1643411187758,16.537,90.79,90.705,0.25]
[1643411187957,16.537,90.79,90.705,3.20669142]
[1643411188159,16.537,90.79,90.706,2.95669142]
[1643411188357,39.56622365,90.789,90.711,109.9]
[1643411188758,16.533,90.81,90.712,3.20669142]
[1643411188958,51.65016064,90.819,90.722,109.9]
[1643411189158,1.48666302,90.85,90.73,32.139]
[1643411189361,49.7212,90.862,90.743,0.31286348]
[1643411189362,51.65016064,90.853,90.743,0.31286348]
[1643411189562,51.65016064,90.856,90.75,15.61]
[1643411189760,46.13381735,90.851,90.752,21.73765814]
[1643411189965,46.13381735,90.851,90.76,6.0]
[1643411190164,46.13381735,90.851,90.762,6.0]
[1643411190369,46.13381735,90.851,90.763,6.25]
[1643411190562,46.13381735,90.851,90.773,6.0]
[1643411190765,16.526,90.85,90.774,110.15]
[1643411190962,70.14176577,90.85,90.782,109.9]
[1643411191162,49.7212,90.862,90.785,109.9]
[1643411191361,49.7212,90.862,90.786,25.0492]
[1643411191566,49.7212,90.862,90.787,109.9]
[1643411191761,0.25,90.861,90.788,0.25]
[1643411192163,16.524,90.86,90.788,21.98765814]
[1643411192362,0.25,90.859,90.788,21.98765814]
[1643411192764,0.25,90.859,90.789,109.9]
[1643411192967,0.25,90.859,90.788,21.73765814]
[1643411193165,16.525,90.85,90.764,2.95669142]
[1643411193466,51.23395437,90.859,90.753,109.9]
[1643411193467,51.23395437,90.849,90.753,109.9]
[1643411193664,74.53545437,90.848,90.753,109.9]
[1643411193863,51.23395437,90.847,90.754,0.25]
[1643411194063,21.74534642,90.846,90.754,38.18279489]
[1643411194263,16.528,90.84,90.756,109.9]
[1643411194663,0.25,90.839,90.757,0.25]
[1643411194866,53.51812617,90.838,90.757,0.25]
[1643411195066,53.51812617,90.837,90.757,0.25]
[1643411195264,53.76812617,90.836,90.757,0.25]
[1643411195464,53.51812617,90.835,90.757,0.25]
[1643411195664,53.51812617,90.834,90.757,0.25]
[1643411195863,0.25,90.839,90.757,0.25]
[1643411195864,53.76812617,90.833,90.757,0.25]
[1643411196170,34.35465358,90.831,90.757,0.25]
[1643411196364,0.25,90.83,90.757,0.25]
[1643411196565,54.41532796,90.83,90.757,0.25]
[1643411196764,54.41532796,90.83,90.761,109.9]
[1643411197165,54.41532796,90.83,90.773,109.9]
[1643411197365,54.41532796,90.83,90.774,0.25]
[1643411197565,54.16532796,90.83,90.783,6.0]
[1643411197767,54.16532796,90.83,90.784,0.25]
[1643411198165,54.16532796,90.829,90.784,0.25]
[1643411198366,52.05810727,90.828,90.784,0.25]
[1643411198567,52.05810727,90.827,90.784,0.25]
[1643411198768,52.30810727,90.826,90.784,0.25]
[1643411198967,52.30810727,90.826,90.784,110.15]
[1643411199168,0.25,90.826,90.784,110.15]
[1643411199368,52.30810727,90.847,90.784,110.15]
[1643411199768,52.30810727,90.847,90.784,0.25]
[1643411200169,41.81606902,90.846,90.79,37.93279489]
[1643411200369,0.25,90.845,90.79,37.93279489]
[1643411200570,52.56294942,90.845,90.79,37.93279489]
[1643411202481,0.25,90.845,90.79,37.93279489]
[1643411202671,0.25,90.845,90.791,0.25]
[1643411202872,0.25,90.861,90.791,110.15]
[1643411203172,92.09378003,90.861,90.791,110.15]
[1643411203372,52.89584636,90.86,90.791,110.15]
[1643411203972,52.89584636,90.859,90.791,110.15]
[1643411204173,52.89584636,90.858,90.793,109.9]
[1643411204377,51.6715231,90.857,90.794,0.25]
[1643411204575,51.6715231,90.889,90.794,0.25]
[1643411204774,39.41864748,90.888,90.794,23.8179]
[1643411204973,91.09017058,90.888,90.795,109.9]
[1643411205175,51.6715231,90.887,90.795,109.9]
[1643411205373,74.6888231,90.887,90.796,0.25]
[1643411205577,51.6715231,90.886,90.796,0.25]
[1643411205773,51.9215231,90.886,90.796,0.25]
[1643411206606,16.52,90.88,90.796,0.25]
[1643411206815,0.25,90.879,90.796,0.25]
[1643411207007,52.64759281,90.879,90.805,6.0]
[1643411207209,52.64759281,90.879,90.806,18.66720511]
[1643411207505,52.64759281,90.879,90.816,6.0]
[1643411207706,52.39759281,90.879,90.808,132.7173]
[1643411207905,52.39759281,90.878,90.808,132.7173]
[1643411208107,52.39759281,90.877,90.809,0.25]
[1643411208307,52.39759281,90.876,90.809,0.25]
[1643411208508,52.39759281,90.875,90.809,0.25]
[1643411208706,16.518,90.89,90.809,0.25]
[1643411208707,52.39759281,90.874,90.809,0.25]
[1643411208909,52.39759281,90.873,90.809,0.25]
[1643411209106,52.48151525,90.872,90.809,0.25]
[1643411209306,52.48151525,90.871,90.809,0.25]
[1643411209507,52.48151525,90.879,90.809,0.25]
[1643411209807,16.68135252,90.869,90.808,22.8173]
[1643411210007,16.68135252,90.869,90.78,15.61]
[1643411210207,0.25,90.868,90.78,15.61]
[1643411210409,52.73151525,90.868,90.762,23.6336]
[1643411210608,52.73151525,90.868,90.79,6.0]
[1643411210810,52.73151525,90.868,90.773,143.86608157]
[1643411211009,16.524,90.86,90.783,6.0]
[1643411211209,51.61281085,90.859,90.783,6.0]
[1643411211416,51.61281085,90.858,90.784,0.25]
[1643411211911,0.25,90.857,90.784,0.25]
[1643411212110,37.32249246,90.855,90.784,0.25]
[1643411212311,0.25,90.854,90.784,23.7166]
[1643411212511,51.86281085,90.854,90.784,23.7166]
[1643411212712,51.86281085,90.854,90.784,110.15]
[1643411213916,0.25,90.854,90.784,110.15]
[1643411214820,2.97692298,90.912,90.789,0.31773155]
[1643411215017,2.97692298,90.912,90.821,0.31194264]
[1643411215018,1.48674192,90.912,90.821,0.31194264]
[1643411215220,1.48674192,90.925,90.821,13.61194264]
[1643411215514,52.21518299,90.924,90.831,6.0]
[1643411215715,52.21518299,90.923,90.832,132.53391843]
[1643411215917,52.21518299,90.923,90.832,141.74060985]
[1643411216115,52.21518299,90.922,90.84,6.0]
[1643411216316,52.21518299,90.921,90.842,6.0]
[1643411216520,50.64617008,90.92,90.851,109.9]
[1643411216715,50.64617008,90.919,90.851,109.9]
[1643411216915,50.64617008,90.919,90.861,6.0]
[1643411217116,50.89617008,90.918,90.861,17.38]
[1643411217418,50.89617008,90.918,90.862,34.21608157]
[1643411217624,50.64617008,90.918,90.872,6.0]
[1643411217820,50.64617008,90.917,90.873,109.9]
[1643411218119,50.64617008,90.933,90.873,109.9]
[1643411219022,0.25,90.932,90.873,109.9]
[1643411219226,51.72570987,90.932,90.873,109.9]
[1643411219420,51.47570987,90.931,90.874,0.25]
[1643411219918,0.25,90.93,90.874,0.25]
[1643411220119,51.72570987,90.93,90.874,0.25]
[1643411220320,22.62331147,90.929,90.874,0.25]
[1643411220522,50.78468678,90.928,90.874,0.25]
[1643411220720,50.78468678,90.927,90.874,0.25]
[1643411220923,50.78468678,90.926,90.874,0.25]
[1643411221121,50.78468678,90.925,90.874,0.25]
[1643411221320,50.78468678,90.924,90.873,109.65]
[1643411221525,16.51,90.94,90.873,109.65]
[1643411221526,50.78468678,90.923,90.873,109.65]
[1643411221723,50.78468678,90.922,90.873,109.65]
[1643411221925,50.78468678,90.921,90.873,109.65]
[1643411222122,50.78468678,90.92,90.883,6.0]
[1643411222324,50.78468678,90.919,90.884,22.63391843]
[1643411222524,53.68274084,90.918,90.884,22.63391843]
[1643411222725,53.68274084,90.917,90.884,22.63391843]
[1643411222928,53.68274084,90.916,90.884,22.63391843]
[1643411223125,53.68274084,90.915,90.884,22.63391843]
[1643411223426,0.25,90.914,90.884,22.63391843]
[1643411224326,53.93274084,90.914,90.884,22.63391843]
[1643411225827,16.51,90.94,90.884,22.63391843]
[1643411226128,1.48674192,90.962,90.894,6.0]
[1643411226327,51.48115975,90.961,90.895,109.9]
[1643411226528,51.48115975,90.96,90.9,6.0]
[1643411226729,51.48115975,90.959,90.906,33.96608157]
[1643411226928,43.47658983,90.969,90.906,43.76608157]
[1643411227227,51.48115975,90.968,90.916,6.0]
[1643411227425,51.48115975,90.965,90.916,6.0]
[1643411227628,43.47658983,90.969,90.917,109.9]
[1643411227926,51.48115975,90.965,90.917,109.9]
[1643411228126,43.47658983,90.969,90.917,109.9]
[1643411228325,51.48115975,90.968,90.917,109.9]
[1643411228528,54.15888558,90.967,90.917,109.9]
[1643411228734,54.71207378,90.966,90.917,109.9]
[1643411229530,54.71207378,90.966,90.86,195.1]
[1643411229730,54.71207378,90.966,90.87,15.61]
[1643411230537,54.71207378,90.966,90.871,144.63136757]
[1643411230732,54.71207378,90.966,90.871,109.9]
[1643411230933,0.25,90.965,90.871,109.9]
[1643411231135,16.506,90.96,90.871,109.9]
[1643411231335,52.52011893,90.959,90.871,109.9]
[1643411231534,52.27011893,90.958,90.871,109.9]
[1643411231738,52.27011893,90.957,90.856,39.90841311]
[1643411231939,52.27011893,90.956,90.856,39.90841311]
[1643411232138,12.12341017,90.939,90.857,110.15]
[1643411232343,53.72103819,90.938,90.857,110.15]
[1643411232577,53.47103819,90.937,90.857,110.15]
[1643411232777,53.72103819,90.936,90.857,110.15]
[1643411232971,53.47103819,90.935,90.857,110.15]
[1643411233172,53.47103819,90.934,90.857,110.15]
[1643411233372,53.47103819,90.933,90.857,110.15]
[1643411233672,16.511,90.93,90.857,110.15]
[1643411233971,53.72103819,90.929,90.857,110.15]
[1643411234576,53.72103819,90.929,90.857,0.25]
[1643411234772,16.513,90.92,90.841,0.25]
[1643411235172,0.25,90.919,90.841,0.25]
[1643411235373,0.25,90.919,90.837,109.9]
[1643411235374,51.3779365,90.919,90.838,0.25]
[1643411235573,43.47658983,90.918,90.838,0.25]
[1643411235776,0.25,90.917,90.838,0.25]
[1643411236175,16.515,90.91,90.838,0.25]
[1643411236373,16.515,90.91,90.825,2.95669142]
[1643411236374,0.25,90.909,90.825,2.95669142]
[1643411236576,51.43327457,90.909,90.817,109.9]
[1643411236773,51.43327457,90.909,90.792,404.04426026]
[1643411237375,16.517,90.9,90.792,404.04426026]
[1643411237578,32.127,90.9,90.792,404.04426026]
[1643411237776,55.08,90.88,90.792,404.04426026]
[1643411238177,0.25,90.879,90.792,404.04426026]
[1643411238377,12.37341017,90.879,90.792,404.04426026]
[1643411238579,11.86676881,90.879,90.787,109.9]
[1643411238779,0.25,90.878,90.76,32.132]
[1643411238977,16.524,90.87,90.779,0.25]
[1643411240179,16.524,90.87,90.772,0.25]
[1643411240379,16.527,90.85,90.772,0.25]
[1643411240578,38.04320199,90.849,90.772,0.25]
[1643411240786,38.29320199,90.849,90.772,0.25]
[1643411241780,38.29320199,90.849,90.772,110.15]
[1643411243589,38.29320199,90.849,90.772,0.25]
[1643411243786,16.527,90.84,90.772,0.25]
[1643411244185,0.25,90.839,90.772,0.25]
[1643411246586,0.25,90.839,90.768,0.25]
[1643411246786,0.25,90.839,90.767,109.9]
[1643411247386,0.25,90.839,90.768,43.56318601]
[1643411249586,0.25,90.839,90.76,15.61]
[1643411250489,17.30015665,90.829,90.761,41.79669367]
[1643411250891,0.25,90.828,90.761,41.79669367]
[1643411252089,0.25,90.828,90.756,109.9]
[1643411253288,0.25,90.828,90.756,148.10389598]
[1643411253689,16.531,90.82,90.756,148.10389598]
[1643411253890,0.25,90.819,90.756,148.10389598]
[1643411255293,0.25,90.819,90.757,0.25]
[1643411256089,0.25,90.819,90.756,109.9]
[1643411256491,0.25,90.819,90.757,0.25]
[1643411256993,0.25,90.819,90.757,45.26666571]
[1643411257592,16.531,90.82,90.757,45.26666571]
[1643411257593,16.531,90.82,90.758,109.9]
[1643411257798,17.30015665,90.829,90.759,0.25]
[1643411258192,17.30015665,90.829,90.76,2.95669142]
[1643411258395,17.30015665,90.829,90.761,0.25]